bitfinex-derivatives/quotes_ETHF0:USTF0_20251024
["timestamp","ask_amount","ask_price","bid_price","bid_amount"]
[1761296108215,0.43725436,3953.6,3953.5,2.02400743]
[1761296108414,1.01415436,3953.6,3953.5,2.02400743]
[1761296109016,0.66635436,3953.6,3953.5,2.02400743]
[1761296109214,0.43725436,3953.6,3953.5,2.02400743]
[1761296109419,0.22365436,3953.6,3953.5,2.02400743]
[1761296111020,0.43725436,3953.6,3953.5,2.02400743]
[1761296111425,0.2136,3953.6,3953.5,2.02400743]
[1761296112115,0.7905,3953.6,3953.5,1.88970743]
[1761296112314,0.7905,3953.6,3953.5,1.55090743]
[1761296112515,0.7905,3953.6,3953.5,1.88970743]
[1761296113425,1.24569,3953.6,3953.5,1.43450743]
[1761296113625,1.24569,3953.6,3953.5,1.88970743]
[1761296114919,1.24569,3953.6,3953.5,1.43450743]
[1761296115112,1.24569,3953.6,3953.5,1.09570743]
[1761296115317,1.46929054,3953.6,3953.5,0.86520743]
[1761296115718,1.46929054,3953.6,3953.5,0.65410743]
[1761296117133,0.22360054,3953.6,3953.5,2.02400743]
[1761296117524,0.3478,3954.0,3953.5,2.02400743]
[1761296117525,0.5614,3954.0,3953.9,1.23556]
[1761296117830,0.78499272,3954.0,3953.9,1.88966743]
[1761296119027,1.24014272,3954.0,3953.9,1.88966743]
[1761296119424,0.89234272,3954.0,3953.9,1.88966743]
[1761296119628,0.22359272,3954.0,3953.9,1.88966743]
[1761296120035,0.43719272,3954.0,3953.9,1.88966743]
[1761296120226,1.2457,3953.5,3953.4,1.22888849]
[1761296120432,1.60689345,3953.5,3953.4,0.86498539]
[1761296120731,1.60689345,3953.5,3953.2,3.7577]
[1761296120732,0.45523,3953.3,3953.2,3.7577]
[1761296120931,1.46935403,3953.3,3953.2,4.41177128]
[1761296121337,1.46935403,3953.3,3953.2,4.64227128]
[1761296122034,0.22362403,3953.3,3953.2,5.09751128]
[1761296122533,0.66876,3953.7,3953.6,1.23557]
[1761296122733,0.89240148,3953.7,3953.6,1.88964128]
[1761296122935,1.24020148,3953.7,3953.6,1.88964128]
[1761296124034,1.46930148,3953.7,3953.6,1.88964128]
[1761296124540,1.01414148,3953.7,3953.6,1.88964128]
[1761296124733,1.46930148,3953.7,3953.6,1.88964128]
[1761296125132,1.01414148,3953.7,3953.6,1.88964128]
[1761296125733,0.66634148,3953.7,3953.6,1.88964128]
[1761296125941,0.22364148,3953.7,3953.6,1.88964128]
[1761296127441,0.43724148,3953.7,3953.6,1.88964128]
[1761296127638,1.46930148,3953.7,3953.6,1.88964128]
[1761296127835,1.46930148,3953.7,3953.6,1.43447128]
[1761296129539,1.01414148,3953.7,3953.6,1.88964128]
[1761296129936,0.66634148,3953.7,3953.6,1.88964128]
[1761296130841,0.99784148,3953.7,3953.6,1.88964128]
[1761296131747,1.45300148,3953.7,3953.6,1.88964128]
[1761296132544,1.45300148,3953.7,3953.6,1.43447128]
[1761296133446,1.45300148,3953.7,3953.6,1.88964128]
[1761296135451,0.99784148,3953.7,3953.6,1.88964128]
[1761296136554,1.45300148,3953.7,3953.6,1.88964128]
[1761296139549,1.45300148,3953.7,3953.6,1.20397128]
[1761296139739,1.45300148,3953.7,3953.6,0.65407128]
[1761296139945,1.2207,3953.4,3953.3,1.0179]
[1761296140153,1.44434148,3953.4,3953.3,1.90036008]
[1761296140549,1.44434148,3953.4,3953.3,1.90028844]
[1761296141052,0.98914148,3953.4,3953.3,1.90028844]
[1761296142452,1.44434148,3953.4,3953.3,1.90028844]
[1761296143752,1.44434148,3953.4,3953.3,1.21738844]
[1761296144854,0.22364148,3953.4,3953.3,1.90029844]
[1761296145449,0.44394148,3953.4,3953.3,1.90029844]
[1761296146851,0.2203,3953.4,3953.3,1.90029844]
[1761296147355,0.5518,3953.4,3953.3,1.90029844]
[1761296148351,0.5518,3953.4,3953.3,1.900044]
[1761296148960,0.45519,3953.5,3953.4,1.2456]
[1761296149158,0.89693348,3953.5,3953.4,2.57963274]
[1761296149359,0.22144348,3953.5,3953.4,2.57963274]
[1761296149559,0.22144348,3953.5,3953.4,1.900034]
[1761296150362,0.67663348,3953.5,3953.4,1.900034]
[1761296151357,1.22843348,3953.5,3953.4,2.57982874]
[1761296151554,1.22843348,3953.5,3953.4,2.12462874]
[1761296151555,1.44213348,3953.5,3953.4,2.12462874]
[1761296151858,1.44213348,3953.5,3953.4,2.57982874]
[1761296152057,1.44213348,3953.5,3953.4,2.12462874]
[1761296152258,1.44213348,3953.5,3953.4,2.57982874]
[1761296152457,1.44213348,3953.5,3953.4,2.12462874]
[1761296152658,1.44213348,3953.5,3953.4,1.444834]
[1761296152858,1.44213348,3953.5,3953.4,1.900034]
[1761296153864,1.57773348,3953.5,3953.4,1.444834]
[1761296154263,1.57773348,3953.5,3953.4,0.654434]
[1761296155262,0.4552,3953.3,3953.2,3.2078]
[1761296155460,1.44214348,3953.3,3953.2,3.86216305]
[1761296155660,1.44214348,3953.3,3953.2,0.65436305]
[1761296156362,1.44214348,3953.3,3953.2,1.44476305]
[1761296158359,1.44214348,3953.3,3953.2,0.65436305]
[1761296159058,1.44214348,3953.3,3953.2,1.44476305]
[1761296160061,0.22144348,3953.3,3953.2,1.89998305]
[1761296160459,0.22144348,3953.3,3953.2,1.56448305]
[1761296161064,1.45644348,3953.3,3953.2,0.65436305]
[1761296161463,4.66424348,3953.3,3953.2,0.65436305]
[1761296161666,1.23505,3952.9,3952.8,0.7958]
[1761296161968,1.45649348,3952.9,3952.8,1.44995843]
[1761296163173,1.00124348,3952.9,3952.8,1.44995843]
[1761296163770,1.45649348,3952.9,3952.8,1.44995843]
[1761296163961,1.00124348,3952.9,3952.8,1.90521843]
[1761296164163,1.45649348,3952.9,3952.8,1.44995843]
[1761296164764,1.45635759,3952.9,3952.8,1.44995843]
[1761296164956,1.00110759,3952.9,3952.8,1.44995843]
[1761296170274,0.7798,3952.6,3952.5,0.5658]
[1761296170472,1.00110759,3952.6,3952.5,1.21590393]
[1761296171169,1.45638759,3952.6,3952.5,1.21590393]
[1761296172073,1.45638759,3952.6,3952.5,1.44590393]
[1761296172273,1.45638759,3952.6,3952.5,0.7958]
[1761296172873,1.45638759,3952.6,3952.5,0.9261]
[1761296173070,0.22130759,3952.6,3952.5,0.9261]
[1761296173284,0.22130759,3952.6,3952.5,1.57615053]
[1761296175278,0.45524,3953.0,3952.9,0.7958]
[1761296175568,0.67629449,3953.0,3952.9,0.7958]
[1761296177376,0.89399449,3953.0,3952.9,0.7958]
[1761296178277,0.89399449,3953.0,3952.9,1.25105]
[1761296179979,0.22105449,3953.0,3952.9,1.25105]
[1761296180275,0.22105449,3953.0,3952.9,1.90111321]
[1761296180678,0.67289,3953.4,3953.3,0.7958]
[1761296180978,0.89403619,3953.4,3953.3,0.7958]
[1761296181177,1.24373619,3953.4,3953.3,0.7958]
[1761296181876,1.45613619,3953.4,3953.3,0.7958]
[1761296185378,1.45613619,3953.4,3953.3,1.44640936]
[1761296187678,1.45613619,3953.4,3953.3,0.7958]
[1761296187880,1.45613619,3953.4,3953.3,1.44648883]
[1761296188582,1.45613619,3953.4,3953.3,0.65068883]
[1761296188782,1.45613619,3953.4,3953.3,1.21498883]
[1761296189282,0.22114619,3953.4,3953.3,1.42708883]
[1761296189481,0.3368,3953.8,3953.3,1.42708883]
[1761296189482,3.6315,3954.1,3954.0,0.227]
[1761296189688,3.42909896,3954.1,3954.0,1.37682]
[1761296189886,3.42909896,3954.1,3954.0,2.02722034]
[1761296190077,0.3368,3954.4,3954.1,0.45511]
[1761296190282,0.22111709,3954.3,3954.1,1.89981034]
[1761296190482,0.22417024,3954.2,3954.1,1.89981034]
[1761296192176,0.00305315,3954.2,3954.1,1.89981034]
[1761296192380,0.00305315,3954.2,3954.1,1.24941]
[1761296198086,0.00305315,3954.2,3954.1,1.89574571]
[1761296199183,0.00305315,3954.2,3954.1,5.10354571]
[1761296202090,0.00305315,3954.2,3954.1,5.10268235]
[1761296207797,0.00305315,3954.2,3954.1,14.13468235]
[1761296209192,0.00305315,3954.2,3954.1,19.13468235]
[1761296209392,1.9851,3954.5,3954.4,1.24938]
[1761296209595,0.3368,3955.2,3955.1,0.455]
[1761296209800,0.5477,3955.2,3955.1,1.2493]
[1761296210097,1.21548,3955.2,3955.1,1.2493]
[1761296210300,1.21785177,3955.2,3955.1,0.79701184]
[1761296210599,1.21785177,3955.2,3955.1,1.25201184]
[1761296211088,1.21785177,3955.2,3955.1,0.79701184]
[1761296211501,1.21785177,3955.2,3955.1,1.25201184]
[1761296213294,0.76287177,3955.2,3955.1,1.25201184]
[1761296213602,0.21327177,3955.2,3955.1,1.25201184]
[1761296214101,0.00237177,3955.2,3955.1,1.25201184]
[1761296214899,0.21327177,3955.2,3955.1,1.25201184]
[1761296215099,0.55007177,3955.2,3955.1,1.25201184]
[1761296216293,0.00237177,3955.2,3955.1,1.25201184]
[1761296216602,0.00237177,3955.2,3955.1,1.89811737]
[1761296220201,0.00237177,3955.2,3955.1,2.57427477]
[1761296220401,0.55717177,3955.2,3955.1,2.57427477]
[1761296220598,0.55717177,3955.2,3955.1,1.89811737]
[1761296220995,0.21587177,3955.2,3955.1,1.89811737]
[1761296221198,0.00237177,3955.2,3955.1,1.89811737]
[1761296223613,0.00237177,3955.2,3955.1,1.25201184]
[1761296223803,0.00237177,3955.2,3955.1,1.89880594]
[1761296225099,0.00237177,3955.2,3955.1,5.10660594]
[1761296227310,0.00237177,3955.2,3955.1,6.01242342]
[1761296227697,1.22405177,3955.2,3955.1,3.85730594]
[1761296227906,1.22405177,3955.2,3954.8,0.90581748]
[1761296227907,1.00982,3954.9,3954.8,0.63896466]
[1761296228206,1.22181,3954.1,3954.0,1.01532]
[1761296228404,0.7667,3954.1,3954.0,1.01532]
[1761296228709,1.22181,3954.1,3954.0,1.01532]
[1761296228907,1.22181,3954.1,3954.0,1.01774225]
[1761296230507,0.7667,3954.1,3954.0,1.01774225]
[1761296231009,1.44480463,3954.1,3954.0,0.56262225]
[1761296231401,1.22181,3954.1,3954.0,0.56262225]
[1761296232102,1.22181,3954.1,3954.0,0.00242225]
[1761296232307,1.44472859,3954.1,3954.0,0.00242225]
[1761296232704,1.22181,3954.1,3954.0,0.00242225]
[1761296235206,0.45519,3953.4,3953.0,5.26074748]
[1761296235407,0.7667,3953.4,3953.3,0.78249]
[1761296235611,0.7667,3953.8,3953.7,0.781]
[1761296235803,0.98936303,3953.8,3953.7,1.23616]
[1761296236415,0.98926396,3953.8,3953.7,1.23849141]
[1761296236606,0.7667,3953.8,3953.7,1.23849141]
[1761296236809,1.22185,3953.8,3953.7,1.23849141]
[1761296237110,1.22185,3953.8,3953.7,0.78333141]
[1761296237307,1.44439732,3953.8,3953.7,0.78333141]
[1761296237506,1.22185,3953.8,3953.7,0.78333141]
[1761296239007,1.3903,3954.0,3953.9,0.45513]
[1761296239201,1.1768,3954.0,3953.9,1.23613]
[1761296240215,1.3903,3954.0,3953.9,1.23613]
[1761296240818,1.1768,3954.0,3953.9,1.23613]
[1761296241516,1.1768,3954.0,3953.9,4.44393]
[1761296242218,1.7316,3954.0,3953.9,4.44393]
[1761296242817,1.3903,3954.0,3953.9,4.44393]
[1761296243018,1.1768,3954.0,3953.9,4.44393]
[1761296245614,0.8071,3954.3,3954.2,1.2361]
[1761296245819,0.8071,3954.3,3954.2,10.2551]
[1761296247715,0.8071,3954.3,3954.2,1.2361]
[1761296247917,1.5738,3954.3,3954.2,10.2541]
[1761296248114,0.8071,3954.3,3954.2,10.2541]
[1761296249926,0.8071,3954.3,3954.2,1.2361]
[1761296250228,0.8071,3954.3,3954.2,10.2541]
[1761296250229,1.6028,3954.3,3954.2,10.2541]
[1761296251326,1.6028,3954.3,3954.2,1.2361]
[1761296251828,0.7957,3954.3,3954.2,1.2361]
[1761296252725,1.25079,3954.3,3954.2,0.781]
[1761296253832,1.25079,3954.3,3954.2,1.2361]
[1761296254031,1.25079,3954.3,3954.2,0.781]
[1761296254434,1.25079,3954.3,3954.2,1.2361]
[1761296255633,1.25079,3954.3,3954.2,0.781]
[1761296255833,1.25079,3954.3,3954.2,1.2361]
[1761296256731,0.79031,3954.2,3954.0,9.5515]
[1761296256929,0.807,3954.4,3954.0,0.2126]
[1761296256930,1.24841,3954.1,3954.0,0.2126]
[1761296257138,1.24841,3954.1,3954.0,0.5355]
[1761296257720,1.37832,3954.0,3953.9,3.2078]
[1761296257925,1.37832,3954.0,3953.9,3.7433]
[1761296258334,1.37832,3954.0,3953.9,3.9658]
[1761296258733,1.24842,3954.0,3953.9,3.9658]
[1761296260237,1.47543651,3954.0,3953.9,3.9658]
[1761296260535,1.47543651,3954.0,3953.9,4.42094]
[1761296261031,1.47543651,3954.0,3953.9,3.9658]
[1761296261429,1.47543651,3954.0,3953.9,0.758]
[1761296261736,0.7933,3953.8,3953.7,0.99299141]
[1761296261931,0.5594,3954.1,3954.0,0.77802]
[1761296262135,0.78641978,3954.1,3954.0,1.21312]
[1761296262336,1.47542978,3954.1,3954.0,1.21312]
[1761296262541,1.47542978,3954.1,3954.0,1.34542]
[1761296263437,1.47542978,3954.1,3954.0,0.758]
[1761296263937,1.47542978,3954.1,3954.0,1.34543]
[1761296265035,0.22701978,3954.1,3954.0,1.34543]
[1761296265247,1.0312,3954.4,3954.3,0.758]
[1761296265536,1.3664,3954.4,3954.3,1.21309]
[1761296265730,1.82148,3954.4,3954.3,1.21309]
[1761296266129,1.3664,3954.4,3954.3,1.21309]
[1761296267441,1.59353373,3954.4,3954.3,1.21309]
[1761296267839,1.82743373,3954.4,3954.3,1.21309]
[1761296268337,0.3352,3954.1,3954.0,0.2126]
[1761296268546,0.7933,3954.1,3954.0,0.99062]
[1761296268743,0.7933,3954.1,3954.0,1.21312]
[1761296269044,1.02052411,3954.1,3954.0,1.21312]
[1761296269241,0.77003195,3954.4,3954.0,5.99782]
[1761296269448,0.3352,3955.6,3955.5,0.45495]
[1761296270337,0.33707311,3955.6,3955.5,0.45495]
[1761296270838,0.79517311,3955.6,3955.4,3.2078]
[1761296271046,0.7933,3955.2,3955.1,0.455]
[1761296271233,0.1299,3955.5,3954.6,3.66286]
[1761296271234,0.4581,3954.7,3954.6,3.66286]
[1761296271436,0.7933,3954.7,3954.6,3.2078]
[1761296273544,0.5594,3954.7,3954.6,3.2078]
[1761296274346,0.2242,3954.7,3954.6,3.2078]
[1761296274944,0.5594,3954.7,3954.6,3.2078]
[1761296275346,0.5594,3954.7,3954.6,3.66286]
[1761296276547,0.7933,3954.7,3954.6,3.66286]
[1761296283743,0.5594,3954.7,3954.6,3.66286]
[1761296284945,0.4595,3955.0,3954.9,0.45502]
[1761296291049,0.6828,3955.0,3954.9,0.45502]
[1761296291252,1.24082,3954.9,3954.8,0.45502]
[1761296291447,1.01014225,3954.9,3954.8,0.45502]
[1761296292659,0.7858,3954.9,3954.8,0.45502]
[1761296295164,0.7858,3954.9,3954.8,1.13301535]
[1761296295863,0.3296,3954.9,3954.8,1.13301535]
[1761296296661,0.4595,3955.0,3954.9,0.45502]
[1761296296963,0.4595,3955.0,3954.9,1.13301535]
[1761296297463,0.4595,3955.0,3954.9,0.45502]
[1761296298463,0.4595,3955.0,3954.9,12.66982]
[1761296300068,0.6828,3955.0,3954.9,12.66982]
[1761296300365,0.4595,3955.0,3954.9,12.66982]
[1761296306172,0.1299,3955.5,3955.4,0.45496]
[1761296306468,0.3532,3955.5,3955.4,3.66276]
[1761296306770,0.6828,3955.5,3955.4,3.66276]
[1761296307767,0.9157,3955.5,3955.4,3.66276]
[1761296311265,1.5953199,3955.5,3955.4,3.2078]
[1761296311472,0.45497,3955.4,3955.3,0.45498]
[1761296311670,1.1222399,3955.4,3955.3,0.45498]
[1761296311971,1.0175699,3955.4,3955.3,0.45498]
[1761296314769,0.45502,3954.9,3954.8,0.45503]
[1761296314973,1.4725899,3954.9,3954.8,0.45503]
[1761296315169,0.3503,3954.7,3954.6,3.66286]
[1761296315370,0.7929,3954.7,3954.6,3.66286]
[1761296319175,1.24795,3954.7,3954.6,3.66286]
[1761296319372,1.47268642,3954.7,3954.6,3.66286]
[1761296320375,1.24795,3954.7,3954.6,3.66286]
[1761296321978,0.7929,3954.7,3954.6,3.66286]
[1761296323077,0.3503,3954.7,3954.6,3.66286]
[1761296324984,0.3503,3954.7,3954.6,4.34164847]
[1761296325382,0.5716,3954.7,3954.6,3.66286]
[1761296326273,0.3503,3954.7,3954.6,3.66286]
[1761296326891,0.3503,3954.7,3954.6,4.34164847]
[1761296332089,0.3503,3954.7,3954.6,3.66286]
[1761296333592,0.3503,3954.7,3954.6,4.34164847]
[1761296333985,0.1299,3955.5,3955.4,0.45496]
[1761296334488,0.70485012,3955.5,3955.4,0.45496]
[1761296335284,1.14745012,3955.5,3955.4,0.45496]
[1761296338786,1.02656,3955.4,3955.3,9.45697]
[1761296339085,1.47251012,3955.4,3955.3,9.45697]
[1761296340588,1.47251012,3955.4,3955.3,9.002]
[1761296341097,1.25808,3955.3,3955.2,0.45498]
[1761296341398,1.48273012,3955.3,3955.2,0.45498]
[1761296342500,1.02775012,3955.3,3955.2,0.45498]
[1761296342898,1.48273012,3955.3,3955.2,0.45498]
[1761296344896,1.02775012,3955.3,3955.2,0.45498]
[1761296345406,0.80575012,3955.3,3955.2,0.45498]
[1761296345903,0.57325012,3955.3,3955.2,0.45498]
[1761296346903,0.3486,3955.3,3955.2,0.45498]
[1761296347701,0.00187311,3955.6,3955.5,0.45497]
[1761296348006,0.00187311,3955.6,3955.5,12.66177]
[1761296349998,0.1299,3956.5,3955.9,0.45492]
[1761296350193,0.3624,3956.5,3956.4,0.45486]
[1761296350395,0.1324,3956.0,3955.9,3.88563349]
[1761296350707,0.9355,3956.0,3955.9,12.2068]
[1761296351103,0.93840595,3956.0,3955.9,12.2068]
[1761296355604,0.93840595,3956.0,3955.9,12.66172]
[1761296356411,0.71640595,3956.0,3955.9,12.66172]
[1761296357612,0.71640595,3956.0,3953.4,6.334]
[1761296357613,0.8031,3955.6,3955.3,0.67687194]
[1761296357908,0.8031,3955.3,3955.2,9.452]
[1761296362215,0.8031,3955.3,3955.2,10.12887194]
[1761296363809,0.8031,3955.3,3955.2,9.67451679]
[1761296364007,1.2581,3955.2,3955.1,0.45501]
[1761296365706,0.90951,3955.1,3955.0,0.45502]
[1761296366115,0.5811,3954.8,3954.7,12.88131679]
[1761296366313,0.8031,3954.8,3954.7,12.88131679]
[1761296366516,0.8031,3954.8,3954.7,13.33637679]
[1761296367018,0.8031,3954.8,3954.7,12.65886]
[1761296367716,1.25815,3954.8,3954.7,12.65886]
[1761296368816,0.8031,3954.8,3954.7,12.65886]
[1761296371918,1.25815,3954.8,3954.7,12.65886]
[1761296375816,1.25815,3954.8,3954.7,3.66286]
[1761296380726,1.25815,3954.8,3954.7,0.45506]
[1761296387430,1.47939796,3954.8,3954.7,0.45506]
[1761296388827,1.02434796,3954.8,3954.7,0.45506]
[1761296389226,0.56984796,3954.8,3954.7,0.45506]
[1761296389732,0.79844796,3954.8,3954.7,0.45506]
[1761296390832,0.79854206,3954.8,3954.7,0.45506]
[1761296392028,1.01594206,3954.8,3954.7,0.45506]
[1761296392233,1.01594206,3954.8,3954.7,1.13257679]
[1761296392631,0.7946,3954.8,3954.7,1.13257679]
[1761296393335,1.01615576,3954.8,3954.7,1.13257679]
[1761296395241,1.01615576,3954.8,3954.7,0.45506]
[1761296399038,1.47120576,3954.8,3954.7,0.45506]
[1761296400331,1.25997,3954.6,3954.5,0.9050513]
[1761296400538,1.39908,3954.5,3954.4,9.44709]
[1761296400845,1.39908,3954.5,3954.4,10.3521413]
[1761296400846,1.16555576,3954.5,3954.4,10.3521413]
[1761296401541,1.16555576,3954.5,3954.4,9.44709]
[1761296401837,0.70735576,3954.5,3954.4,9.44709]
[1761296402045,0.1324,3955.0,3954.9,0.45503]
[1761296402234,0.1324,3955.0,3954.9,1.13399572]
[1761296402630,1.26729609,3955.0,3954.9,0.67896572]
[1761296402940,0.91329,3954.4,3954.3,4.11308763]
[1761296403142,0.67987609,3954.4,3954.3,3.6629]
[1761296403336,0.4551,3954.3,3954.2,0.90528763]
[1761296403540,1.13232309,3954.3,3954.1,1.36040763]
[1761296403741,0.9133,3954.3,3954.2,0.45512]
[1761296403944,1.47902578,3954.3,3954.2,0.45512]
[1761296404243,1.26002,3954.2,3954.1,0.90528763]
[1761296404444,0.8049,3954.2,3954.1,1.36041763]
[1761296407847,0.3697,3954.5,3954.4,0.45509]
[1761296408144,0.81661868,3954.5,3954.4,0.45509]
[1761296408350,1.16331868,3954.5,3954.4,0.45509]
[1761296409948,1.16329128,3954.5,3954.4,0.45509]
[1761296411945,0.93569128,3954.5,3954.4,0.45509]
[1761296412145,0.4858,3954.5,3954.4,0.45509]
[1761296412540,0.3467,3954.5,3954.4,0.45509]
[1761296412748,0.5906,3955.0,3954.9,0.45503]
[1761296412948,0.80984268,3955.0,3954.9,0.45503]
[1761296413150,1.15654268,3955.0,3954.9,0.45503]
[1761296414852,0.9373,3955.0,3954.9,0.45503]
[1761296416152,0.3467,3954.9,3954.7,8.99]
[1761296416448,1.25994,3954.9,3954.8,0.45505]
[1761296416651,1.47913913,3954.9,3954.8,0.45505]
[1761296417845,1.02409913,3954.9,3954.8,0.45505]
[1761296419650,0.8049,3954.9,3954.8,0.45505]
[1761296421054,1.25993,3954.9,3954.8,0.45505]
[1761296421850,0.8049,3954.8,3954.7,0.45506]
[1761296422151,0.5773,3954.8,3954.7,0.45506]
[1761296422753,0.79645937,3954.8,3954.7,0.45506]
[1761296423856,1.02405937,3954.8,3954.7,0.45506]
[1761296425461,1.47910937,3954.8,3954.7,0.45506]
[1761296425656,1.02405937,3954.8,3954.7,0.45506]
[1761296425861,1.02404918,3954.8,3954.7,0.45506]
[1761296428763,1.47909918,3954.8,3954.7,0.45506]
[1761296429359,1.02404918,3954.8,3954.7,0.45506]
[1761296429965,1.47909918,3954.8,3954.7,0.45506]
[1761296430167,1.25326,3954.7,3954.6,3.2078]
[1761296430358,1.47240918,3954.7,3954.6,3.2078]
[1761296433070,1.47243093,3954.7,3954.6,3.2078]
[1761296437263,1.25327,3954.6,3954.5,0.45508]
[1761296437463,1.39259,3954.5,3954.4,0.45509]
[1761296437661,1.25329,3954.4,3954.3,3.6629]
[1761296439867,1.25329,3954.4,3954.0,0.90528763]
[1761296440062,1.39264,3954.0,3953.9,0.45515]
[1761296441377,0.45515,3953.9,3953.8,7.35316]
[1761296441574,1.25335,3953.9,3953.8,7.35316]
[1761296442780,1.25336,3953.8,3953.7,0.00233141]
[1761296443077,1.25336,3953.8,3953.7,0.45750141]
[1761296443571,1.25336,3953.8,3953.7,0.00233141]
[1761296444573,1.47120873,3953.8,3953.7,0.00233141]
[1761296445671,0.7982,3952.8,3952.7,0.45529]
[1761296446779,1.25613975,3952.8,3952.7,0.00300267]
[1761296448680,6.25613975,3952.8,3952.7,0.00300267]
[1761296448884,0.7982,3952.3,3952.2,0.45534]
[1761296449274,0.80215,3952.2,3952.1,3.2078]
[1761296449479,1.25355,3952.2,3952.1,3.2078]
[1761296449880,1.25355,3952.2,3952.1,3.21079292]
[1761296450486,0.7982,3952.2,3952.1,3.21079292]
[1761296450683,0.7982,3952.2,3952.1,3.66615292]
[1761296451284,0.3468,3952.2,3952.1,3.66615292]
[1761296451484,0.1393,3952.5,3952.4,0.45532]
[1761296451987,0.4861,3952.5,3952.4,0.45532]
[1761296452386,0.9375,3952.5,3952.4,0.45532]
[1761296453094,0.7035,3952.5,3952.4,0.45532]
[1761296453297,0.9375,3952.5,3952.4,0.45532]
[1761296453980,0.4514,3952.2,3952.1,3.21079292]
[1761296454182,0.7982,3952.2,3952.1,3.66615292]
[1761296454891,0.3468,3952.2,3952.1,3.66615292]
[1761296455190,0.5642,3952.2,3952.1,3.66615292]
[1761296455577,1.25355,3952.2,3952.1,3.21079292]
[1761296455784,1.25355,3952.2,3952.1,0.00299292]
[1761296457289,0.7982,3952.2,3952.1,0.45835292]
[1761296458096,0.9375,3952.5,3952.4,0.45532]
[1761296458394,0.9375,3952.5,3952.3,3.2078]
[1761296458395,0.3468,3952.4,3952.3,3.2078]
[1761296458598,1.25355,3952.2,3952.1,0.00299292]
[1761296460997,0.7982,3952.2,3952.1,0.45835292]
[1761296461386,0.7982,3952.2,3952.1,3.66615292]
[1761296462388,0.3468,3952.2,3952.1,3.66615292]
[1761296462591,0.1393,3952.5,3952.4,0.45532]
[1761296463291,0.4653,3952.5,3952.4,0.45532]
[1761296465793,0.00265975,3952.8,3952.7,0.45529]
[1761296465999,0.23025975,3952.8,3952.7,0.45529]
[1761296466385,0.55625975,3952.8,3952.7,0.45529]
[1761296466889,0.78805975,3952.8,3952.7,0.45529]
[1761296475987,0.78805975,3952.8,3952.6,0.45529]
[1761296475988,0.45529,3952.7,3952.6,0.45529]
[1761296476201,1.37621,3952.5,3952.4,0.45531]
[1761296477192,0.9209,3952.5,3952.4,0.45531]
[1761296478595,0.6891,3952.5,3952.4,0.45531]
[1761296479596,0.9209,3952.5,3952.4,0.45531]
[1761296480398,0.4615,3952.5,3952.4,0.45531]
[1761296480604,0.23025975,3952.8,3952.7,0.45529]
[1761296480900,0.00265975,3952.8,3952.7,3.66309]
[1761296481304,0.32865975,3952.8,3952.7,3.66309]
[1761296482004,0.32865975,3952.8,3952.7,4.56837763]
[1761296482593,0.55625975,3952.8,3952.7,4.56837763]
[1761296482807,0.78805975,3952.8,3952.7,4.56837763]
[1761296483202,0.55625975,3952.8,3952.7,3.66309]
[1761296483400,0.32865975,3952.8,3952.7,3.66309]
[1761296483893,0.32865975,3952.8,3952.7,4.56837763]
[1761296484099,0.32865975,3952.8,3952.7,3.66309]
[1761296485107,0.32865975,3952.8,3952.7,4.56837763]
[1761296485404,0.32865975,3952.8,3952.7,3.66309]
[1761296485405,0.55625975,3952.8,3952.7,3.66309]
[1761296485611,0.55625975,3952.8,3952.7,4.56837763]
[1761296485910,0.32865975,3952.8,3952.7,4.56837763]
[1761296486700,0.00265975,3952.8,3952.7,3.66309]
[1761296487508,0.326,3953.3,3953.2,0.45523]
[1761296487708,0.326,3953.3,3953.2,9.43823]
[1761296488108,0.7854,3953.3,3953.2,9.43823]
[1761296488607,0.78762937,3953.3,3953.2,9.43823]
[1761296490811,0.78762937,3953.3,3953.2,0.45523]
[1761296491311,0.78762937,3953.3,3953.2,1.13137874]
[1761296491907,0.78762937,3953.3,3953.2,0.45523]
[1761296495409,0.78762937,3953.3,3953.2,1.13169771]
[1761296495799,0.78762937,3953.3,3953.2,0.45523]
[1761296496611,1.24284937,3953.3,3953.2,0.45523]
[1761296496798,0.78762937,3953.3,3953.2,0.45523]
[1761296496998,0.32822937,3953.3,3953.2,0.45523]
[1761296497408,0.54122937,3953.3,3953.2,0.45523]
[1761296498206,0.75932937,3953.3,3953.2,0.45523]
[1761296505214,0.75932937,3953.3,3953.2,1.13169771]
[1761296508123,0.32822937,3953.3,3953.2,1.13169771]
[1761296508416,0.54122937,3953.3,3953.2,0.45523]
[1761296509516,0.54122937,3953.3,3953.2,1.35693947]
[1761296509821,0.54122937,3953.3,3953.2,0.45523]
[1761296512018,0.54122937,3953.3,3953.2,1.35883336]
[1761296514520,0.75932937,3953.3,3953.2,1.35883336]
[1761296514716,0.75932937,3953.3,3953.2,0.45523]
[1761296515020,0.7728,3953.2,3953.1,12.64104]
[1761296515524,1.22804,3953.1,3953.0,8.978]
[1761296515822,1.45394221,3953.1,3953.0,9.43325]
[1761296516030,0.65700221,3953.1,3952.8,1.13335623]
[1761296516218,1.22806,3952.9,3952.8,0.67809623]
[1761296516423,0.99868395,3952.9,3952.8,0.45528]
[1761296518217,1.22806,3952.9,3952.8,0.45528]
[1761296518524,0.99856853,3952.9,3952.8,0.45528]
[1761296519221,0.7728,3952.9,3952.8,0.45528]
[1761296519819,1.22806,3952.9,3952.8,0.45528]
[1761296520021,1.45378069,3952.9,3952.8,0.45528]
[1761296521228,0.99852069,3952.9,3952.8,0.45528]
[1761296522222,0.1119789,3953.0,3952.8,9.2685]
[1761296522420,0.8121,3953.2,3953.1,1.23294]
[1761296522624,0.8121,3953.2,3953.1,13.41774]
[1761296522830,0.00222937,3953.3,3953.2,1.23293]
[1761296523225,0.43222937,3953.3,3953.2,1.90988]
[1761296523431,0.43222937,3953.3,3953.2,1.56178]
[1761296523925,0.43222937,3953.3,3953.2,1.90988]
[1761296524326,0.74942937,3953.3,3953.2,1.90988]
[1761296525434,0.74942937,3953.3,3953.2,1.56178]
[1761296525724,0.31942937,3953.3,3953.2,1.90988]
[1761296525926,0.53212937,3953.3,3953.2,1.23293]
[1761296526634,0.31942937,3953.3,3953.2,1.23293]
[1761296528832,0.53212937,3953.3,3953.2,1.23293]